fUST/lending_fUST_20250715
["ID","MTS","AMOUNT","RATE_DAILY","PERIOD"]
[372295670,1752576661567,-5607.35,0.00021643,2]
[372295671,1752576661577,-965.9,0.00021643,2]
[372295672,1752576661586,-700.71,0.00021643,2]
[372295673,1752576661596,-567.75,0.00021643,2]
[372295674,1752576661605,-613.96,0.00021643,2]
[372295675,1752576661615,-462.38,0.00021643,2]
[372295676,1752576661624,-910.8,0.00021643,2]
[372295677,1752576661634,-460.0,0.00021643,2]
[372295678,1752576661643,-3524.09,0.00021643,2]
[372295679,1752576661653,-510.90257554,0.00021643,2]
[372295680,1752576661663,-460.0,0.00021643,2]
[372295681,1752576661673,-5580.35,0.00021643,2]
[372295682,1752576661683,-2725.35,0.00021643,2]
[372295683,1752576661694,-793.39,0.00021643,2]
[372295684,1752576661703,-518.31,0.00021643,2]
[372295685,1752576661713,-989.14,0.00021643,2]
[372295686,1752576661723,-460.0,0.00021643,2]
[372295687,1752576661733,-240.27,0.00021643,2]
[372295688,1752576661744,-1154.57,0.00021643,2]
[372295689,1752576661754,-460.0,0.00021643,2]
[372295690,1752576661763,-460.0,0.00021643,2]
[372295691,1752576661774,-460.0,0.00021643,2]
[372295692,1752576661790,-460.0,0.00021643,2]
[372295693,1752576661800,-460.0,0.00021643,2]
[372295694,1752576661809,-6943.82,0.00021643,2]
[372295695,1752576661819,-1423.61,0.00021643,2]
[372295696,1752576661829,-476.29,0.00021643,2]
[372295697,1752576661839,-460.0,0.00021643,2]
[372295698,1752576661848,-790.9,0.00021643,2]
[372295699,1752576661859,-1209.86,0.00021643,2]
[372295700,1752576661870,-688.25,0.00021643,2]
[372295701,1752576661879,-2697.52,0.00021643,2]
[372295702,1752576661893,-460.0,0.00021643,2]
[372295703,1752576661902,-918.36,0.00021643,2]
[372295704,1752576661912,-2341.14,0.00021643,2]
[372295705,1752576661922,-460.0,0.00021643,2]
[372295706,1752576661932,-551.94,0.00021643,2]
[372295707,1752576661942,-563.91,0.00021643,2]
[372295708,1752576661952,-1174.35,0.00021643,2]
[372295709,1752576661962,-8228.16,0.00021643,2]
[372295710,1752576661973,-460.0,0.00021675,2]
[372295711,1752576661984,-1000.0,0.00021682,2]
[372295712,1752576661994,-329.2574062,0.00021699,2]
[372295713,1752576662004,-52940.468666,0.000217,2]
[372295714,1752576662014,-587.0,0.00021746,2]
[372295715,1752576662025,-1060.556339,0.00021747,8]
[372295716,1752576662036,-9101.34560448,0.00021762,5]
[372295717,1752576662046,-335.82,0.00021846,2]
[372295718,1752576662056,-3000.0,0.000219,2]
[372295719,1752576662066,-42500.88,0.000219,2]
[372295720,1752576662077,-800.0,0.00021901,2]
[372295721,1752576662087,-3000.0,0.0002191,2]
[372295722,1752576662097,-1000.0,0.00021912,2]
[372295723,1752576662108,-104761.16295434,0.00021916,2]
[372295724,1752576662118,-460.0,0.00021917,2]
[372295725,1752576662128,-151.0,0.00021917,2]
[372295726,1752576662138,-151.0,0.00021917,2]
[372295727,1752576662147,-1324.258675,0.00021917,2]
[372295728,1752576662157,-1324.258675,0.00021917,2]
[372295729,1752576662167,-151.0,0.00021917,2]
[372295730,1752576662177,-292.540885,0.00021917,2]
[372295731,1752576662187,-292.540885,0.00021917,2]
[372295732,1752576662199,-460.0,0.00021917,2]
[372295733,1752576662210,-460.0,0.00021917,2]
[372295734,1752576662221,-460.0,0.00021917,2]
[372295735,1752576662231,-460.0,0.00021917,2]
[372295736,1752576662240,-151.0,0.00021917,2]
[372295737,1752576662250,-532.14,0.00021917,2]
[372295738,1752576662260,-615.03,0.00021917,2]
[372295739,1752576662270,-621.3,0.00021917,2]
[372295740,1752576662279,-460.0,0.00021917,2]
[372295741,1752576662290,-887.33,0.00021917,2]
[372295742,1752576662474,-460.0,0.00021917,2]
[372295743,1752576662485,-151.0,0.00021917,2]
[372295744,1752576662495,-460.0,0.00021917,2]
[372295745,1752576662504,-151.0,0.00021917,2]
[372295746,1752576662514,-299.731694,0.00021917,2]
[372295747,1752576662522,-911.96,0.00021917,2]
[372295748,1752576662532,-460.0,0.00021917,2]
[372295749,1752576662541,-350.117062,0.00021917,2]
[372295750,1752576662551,-311.723068,0.00021917,2]
[372295751,1752576662560,-311.723068,0.00021917,2]
[372295752,1752576662569,-350.117062,0.00021917,2]
[372295753,1752576662578,-364.2,0.00021917,2]
[372295754,1752576662588,-151.0,0.00021917,2]
[372295755,1752576662597,-151.0,0.00021917,2]
[372295756,1752576662607,-728.39,0.00021917,2]
[372295757,1752576662616,-151.0,0.00021917,2]
[372295758,1752576662626,-321.501266,0.00021917,2]
[372295759,1752576662636,-321.501266,0.00021917,2]
[372295760,1752576662645,-876.22,0.00021917,2]
[372295761,1752576662655,-460.0,0.00021917,2]
[372295762,1752576662664,-525.07,0.00021917,2]
[372295763,1752576662674,-151.0,0.00021917,2]
[372295764,1752576662683,-460.0,0.00021917,2]
[372295765,1752576662693,-151.0,0.00021917,2]
[372295766,1752576662703,-1929.04,0.00021917,2]
[372295767,1752576662713,-217.30358,0.00021917,2]
[372295768,1752576662723,-217.30358,0.00021917,2]
[372295769,1752576662732,-898.74,0.00021917,2]
[372295770,1752576662742,-898.74,0.00021917,2]
[372295771,1752576662751,-898.74,0.00021917,2]
[372295772,1752576662761,-898.74,0.00021917,2]
[372295773,1752576662771,-898.74,0.00021917,2]
[372295774,1752576662783,-898.74,0.00021917,2]
[372295775,1752576662792,-898.74,0.00021917,2]
[372295776,1752576662802,-898.74,0.00021917,2]
[372295777,1752576662811,-898.74,0.00021917,2]
[372295778,1752576662822,-898.74,0.00021917,2]
[372295779,1752576662832,-898.74,0.00021917,2]
[372295780,1752576662843,-151.0,0.00021917,2]
[372295781,1752576662852,-2277.18,0.00021917,2]
[372295782,1752576662863,-151.0,0.00021917,2]
[372295783,1752576662873,-151.0,0.00021917,2]
[372295784,1752576662883,-151.0,0.00021917,2]
[372295785,1752576663101,-460.0,0.00021917,2]
[372295786,1752576663111,-151.0,0.00021917,2]
[372295787,1752576663121,-2409.93,0.00021917,2]
[372295788,1752576663131,-767.49,0.00021917,2]
[372295789,1752576663141,-3874.16,0.00021917,2]
[372295790,1752576663151,-409.2,0.00021917,2]
[372295791,1752576663170,-1024.73,0.00021917,2]
[372295792,1752576663181,-855.332983,0.00021917,2]
[372295793,1752576663190,-460.0,0.00021917,2]
[372295794,1752576663201,-855.332983,0.00021917,2]
[372295795,1752576663211,-460.0,0.00021917,2]
[372295796,1752576663221,-2456.27,0.00021917,2]
[372295797,1752576663231,-5607.35,0.00021917,2]
[372295798,1752576663241,-965.9,0.00021917,2]
[372295799,1752576663251,-700.71,0.00021917,2]
[372295800,1752576663261,-567.75,0.00021917,2]
[372295801,1752576663271,-613.96,0.00021917,2]
[372295802,1752576663281,-462.38,0.00021917,2]
[372295803,1752576663291,-910.8,0.00021917,2]
[372295804,1752576663301,-3524.09,0.00021917,2]
[372295805,1752576663312,-151.0,0.00021917,2]
[372295806,1752576663321,-460.0,0.00021917,2]
[372295807,1752576663331,-5580.35,0.00021917,2]
[372295808,1752576663341,-151.0,0.00021917,2]
[372295809,1752576663351,-2725.35,0.00021917,2]
[372295810,1752576663361,-793.39,0.00021917,2]
[372295811,1752576663370,-518.31,0.00021917,2]
[372295812,1752576663380,-151.0,0.00021917,2]
[372295813,1752576663390,-989.14,0.00021917,2]
[372295814,1752576663400,-225.714513,0.00021917,2]
[372295815,1752576663410,-460.0,0.00021917,2]
[372295816,1752576663420,-1154.57,0.00021917,2]
[372295817,1752576663430,-460.0,0.00021917,2]
[372295818,1752576663440,-460.0,0.00021917,2]
[372295819,1752576663450,-460.0,0.00021917,2]
[372295820,1752576663459,-460.0,0.00021917,2]
[372295821,1752576663469,-460.0,0.00021917,2]
[372295822,1752576663478,-6943.82,0.00021917,2]
[372295823,1752576663488,-1423.61,0.00021917,2]
[372295824,1752576663498,-476.29,0.00021917,2]
[372295825,1752576663507,-460.0,0.00021917,2]
[372295826,1752576663519,-790.9,0.00021917,2]
[372295827,1752576663529,-1209.86,0.00021917,2]
[372295828,1752576663538,-688.25,0.00021917,2]
[372295829,1752576663548,-2697.52,0.00021917,2]
[372295830,1752576663557,-460.0,0.00021917,2]
[372295831,1752576663567,-918.36,0.00021917,2]
[372295832,1752576663578,-2341.14,0.00021917,2]
[372295833,1752576663589,-460.0,0.00021917,2]
[372295834,1752576663598,-151.0,0.00021917,2]
[372295835,1752576663608,-551.94,0.00021917,2]
[372295836,1752576663618,-151.0,0.00021917,2]
[372295837,1752576663628,-563.91,0.00021917,2]
[372295838,1752576663638,-1174.35,0.00021917,2]
[372295839,1752576663649,-151.0,0.00021917,2]
[372295840,1752576663659,-8228.16,0.00021917,2]
[372295841,1752576663670,-151.0,0.00021917,2]
[372295842,1752576663680,-195.06976,0.00021917,2]
[372295843,1752576663691,-153.0,0.00021918,2]
[372295844,1752576663702,-153.0,0.00021918,2]
[372295845,1752576663713,-153.0,0.00021918,2]
[372295846,1752576663723,-153.0,0.00021918,2]
[372295847,1752576663733,-153.0,0.00021918,2]
[372295848,1752576663742,-153.0,0.00021918,2]
[372295849,1752576663753,-153.0,0.00021918,2]
[372295850,1752576663763,-153.0,0.00021918,2]
[372295851,1752576663773,-153.0,0.00021918,2]
[372295852,1752576663787,-153.0,0.00021918,2]
[372295853,1752576663798,-153.0,0.00021918,2]
[372295854,1752576663808,-153.0,0.00021918,2]
[372295855,1752576663820,-153.0,0.00021918,2]
[372295856,1752576663829,-153.0,0.00021918,2]
[372295857,1752576663839,-153.0,0.00021918,2]
[372295858,1752576663850,-153.0,0.00021918,2]
[372295859,1752576663860,-153.0,0.00021918,2]
[372295860,1752576663869,-153.0,0.00021918,2]
[372295861,1752576663878,-153.0,0.00021918,2]
[372295862,1752576663888,-153.0,0.00021918,2]
[372295863,1752576663897,-153.0,0.00021918,2]
[372295864,1752576663907,-153.0,0.00021918,2]
[372295865,1752576663916,-153.0,0.00021918,2]
[372295866,1752576663926,-153.0,0.00021918,2]
[372295867,1752576663936,-153.0,0.00021918,2]
[372295868,1752576663947,-153.0,0.00021918,2]
[372295869,1752576663958,-153.0,0.00021918,2]
[372295870,1752576663968,-153.0,0.00021918,2]
[372295871,1752576663978,-153.0,0.00021918,2]
[372295872,1752576663988,-153.0,0.00021918,2]
[372295873,1752576663998,-153.0,0.00021918,2]
[372295874,1752576664009,-153.0,0.00021918,2]
[372295875,1752576664019,-153.0,0.00021918,2]
[372295876,1752576664029,-153.0,0.00021918,2]
[372295877,1752576664039,-153.0,0.00021918,2]
[372295878,1752576664049,-153.0,0.00021918,2]
[372295879,1752576664058,-153.0,0.00021918,2]
[372295880,1752576664068,-153.0,0.00021918,2]
[372295881,1752576664078,-153.0,0.00021918,2]
[372295882,1752576664088,-153.0,0.00021918,2]
[372295883,1752576664097,-153.0,0.00021918,2]
[372295884,1752576664107,-153.0,0.00021918,2]
[372295885,1752576664117,-153.0,0.00021918,2]
[372295886,1752576664126,-153.0,0.00021918,2]
[372295887,1752576664137,-153.0,0.00021918,2]
[372295888,1752576664146,-153.0,0.00021918,2]
[372295889,1752576664156,-153.0,0.00021918,2]
[372295890,1752576664166,-153.0,0.00021918,2]
[372295891,1752576664176,-153.0,0.00021918,2]
[372295892,1752576664186,-153.0,0.00021918,2]
[372295893,1752576664196,-153.0,0.00021918,2]
[372295894,1752576664205,-153.0,0.00021918,2]
[372295895,1752576664214,-153.0,0.00021918,2]
[372295896,1752576664224,-153.0,0.00021918,2]
[372295897,1752576664233,-153.0,0.00021918,2]
[372295898,1752576664243,-153.0,0.00021918,2]
[372295899,1752576664252,-153.0,0.00021918,2]
[372295900,1752576664262,-153.0,0.00021918,2]
[372295901,1752576664271,-153.0,0.00021918,2]
[372295902,1752576664281,-153.0,0.00021918,2]
[372295903,1752576664290,-153.0,0.00021918,2]
[372295904,1752576664301,-153.0,0.00021918,2]
[372295905,1752576664311,-153.0,0.00021918,2]
[372295906,1752576664321,-153.0,0.00021918,2]
[372295907,1752576664331,-153.0,0.00021918,2]
[372295908,1752576664341,-153.0,0.00021918,2]
[372295909,1752576664351,-153.0,0.00021918,2]
[372295910,1752576664361,-153.0,0.00021918,2]
[372295911,1752576664370,-153.0,0.00021918,2]
[372295912,1752576664380,-153.0,0.00021918,2]
[372295913,1752576664390,-153.0,0.00021918,2]
[372295914,1752576664400,-153.0,0.00021918,2]
[372295915,1752576664411,-153.0,0.00021918,2]
[372295916,1752576664420,-153.0,0.00021918,2]
[372295917,1752576664430,-153.0,0.00021918,2]
[372295918,1752576664440,-153.0,0.00021918,2]
[372295919,1752576664451,-153.0,0.00021918,2]
[372295920,1752576664461,-153.0,0.00021918,2]
[372295921,1752576664470,-153.0,0.00021918,2]
[372295922,1752576664480,-153.0,0.00021918,2]
[372295923,1752576664490,-153.0,0.00021918,2]
[372295924,1752576664499,-153.0,0.00021918,2]
[372295925,1752576664509,-153.0,0.00021918,2]
[372295926,1752576664519,-153.0,0.00021918,2]
[372295927,1752576664529,-153.0,0.00021918,2]
[372295928,1752576664538,-153.0,0.00021918,2]
[372295929,1752576664548,-153.0,0.00021918,2]
[372295930,1752576664559,-153.0,0.00021918,2]
[372295931,1752576664568,-153.0,0.00021918,2]
[372295932,1752576664578,-153.0,0.00021918,2]
[372295933,1752576664587,-153.0,0.00021918,2]
[372295934,1752576664598,-153.0,0.00021918,2]
[372295935,1752576664608,-153.0,0.00021918,2]
[372295936,1752576664617,-153.0,0.00021918,2]
[372295937,1752576664627,-153.0,0.00021918,2]
[372295938,1752576664636,-153.0,0.00021918,2]
[372295939,1752576664646,-153.0,0.00021918,2]
[372295940,1752576664655,-153.0,0.00021918,2]
[372295941,1752576664665,-153.0,0.00021918,2]
[372295942,1752576664674,-153.0,0.00021918,2]
[372295943,1752576664685,-153.0,0.00021918,2]
[372295944,1752576664695,-153.0,0.00021918,2]
[372295945,1752576664704,-153.0,0.00021918,2]
[372295946,1752576664713,-153.0,0.00021918,2]
[372295947,1752576664722,-153.0,0.00021918,2]
[372295948,1752576664732,-153.0,0.00021918,2]
[372295949,1752576664741,-153.0,0.00021918,2]
[372295950,1752576664751,-153.0,0.00021918,2]
[372295951,1752576664761,-153.0,0.00021918,2]
[372295952,1752576664770,-503.873021,0.00021918,2]
[372295953,1752576664783,-503.873021,0.00021918,2]
[372295954,1752576664793,-503.873021,0.00021918,2]
[372295955,1752576664803,-503.873021,0.00021918,2]
[372295956,1752576664812,-503.873021,0.00021918,2]
[372295957,1752576664824,-503.873021,0.00021918,2]
[372295958,1752576664833,-503.873021,0.00021918,2]
[372295959,1752576664843,-503.873021,0.00021918,2]
[372295960,1752576664852,-151.0,0.00021918,2]
[372295961,1752576664864,-151.0,0.00021918,2]
[372295962,1752576664873,-151.0,0.00021918,2]
[372295963,1752576664882,-200.0,0.00021918,2]
[372295964,1752576664892,-150.0,0.00021918,2]
[372295965,1752576664901,-250.05317699,0.00021918,2]
[372295966,1752576664911,-151.0,0.00021918,7]
[372295967,1752576664920,-151.0,0.00021918,7]
[372295968,1752576664930,-151.0,0.00021918,7]
[372295969,1752576664941,-151.0,0.00021918,7]
[372295970,1752576664951,-591.765364,0.00021918,7]
[372295971,1752576664960,-591.765364,0.00021918,7]
[372295972,1752576664970,-151.0,0.00021918,3]
[372295973,1752576664979,-151.0,0.00021918,7]
[372295974,1752576664989,-196.915642,0.00021918,7]
[372295975,1752576664998,-196.915642,0.00021918,7]
[372295976,1752576665009,-825.561749,0.00021918,7]
[372295977,1752576665018,-825.561749,0.00021918,7]
[372295978,1752576665028,-344.975355,0.00021918,7]
[372295979,1752576665038,-344.975355,0.00021918,7]
[372295980,1752576665048,-1346.302367,0.00021918,7]
[372295981,1752576665057,-1346.302367,0.00021918,7]
[372295982,1752576665066,-3000.0,0.0002192,2]
[372295983,1752576665076,-3000.0,0.0002193,2]
[372295984,1752576665086,-3000.0,0.0002194,2]
[372295985,1752576665095,-151.0,0.0002194,7]
[372295986,1752576665105,-151.0,0.0002194,7]
[372295987,1752576665115,-151.0,0.0002194,7]
[372295988,1752576665124,-3000.0,0.0002195,2]
[372295989,1752576665134,-3000.0,0.0002196,2]
[372295990,1752576665144,-9101.34560448,0.00021969,6]
[372295991,1752576665188,-3000.0,0.0002197,2]
[372295992,1752576665202,-151.0,0.00021977,2]
[372295993,1752576665212,-25000.0,0.00021977,2]
[372295994,1752576665222,-3000.0,0.0002198,2]
[372295995,1752576665231,-151.0,0.0002198,7]
[372295996,1752576665241,-3000.0,0.0002199,2]
[372295997,1752576665251,-27049.48,0.00022,7]
[372295998,1752576665260,-3000.0,0.00022,2]
[372295999,1752576665269,-160.0,0.00022,7]
[372296000,1752576665279,-214.37129034,0.00022,7]
[372296001,1752576665289,-581.54072934,0.00022,2]
[372296002,1752576665298,-12603.13032295,0.00022,7]
[372296003,1752576665307,-287.0,0.00022,2]
[372296004,1752576665317,-3000.0,0.0002201,2]
[372296005,1752576665327,-3000.0,0.0002202,2]
[372296006,1752576665337,-522.10421559,0.00022021,2]
[372296007,1752576665347,-1000.0,0.00022021,2]
[372296008,1752576665356,-662.13995091,0.00022021,2]
[372296009,1752576665366,-509.81140202,0.00022021,2]
[372296010,1752576665377,-260.58499633,0.00022021,2]
[372296011,1752576665387,-504.32043466,0.00022021,2]
[372296012,1752576665397,-1000.0,0.00022021,2]
[372296013,1752576665406,-1000.0,0.00022021,2]
[372296014,1752576665416,-348.96960184,0.00022021,2]
[372296015,1752576665426,-1000.0,0.00022021,2]
[372296016,1752576665436,-1000.0,0.00022021,2]
[372296017,1752576665447,-1000.0,0.00022021,2]
[372296018,1752576665457,-1000.0,0.00022021,2]
[372296019,1752576665467,-1000.0,0.00022021,2]
[372296020,1752576665477,-3000.0,0.0002203,2]
[372296021,1752576665487,-3155.79111,0.0002204,2]
[372296022,1752576665496,-259.0,0.00022052,2]
[372296023,1752576665505,-150.6626,0.0002208,2]
[372296024,1752576665515,-259.0,0.00022088,2]
[372296025,1752576665524,-3529.0,0.00022115,2]
[372296026,1752576665534,-306.0,0.00022125,2]
[372296027,1752576665547,-500.0,0.00022165,7]
[372296028,1752576665556,-151.0,0.00022165,7]
[372296029,1752576665566,-293.68440778,0.00022165,7]
[372296030,1752576665576,-151.0,0.00022165,7]
[372296031,1752576665586,-151.0,0.00022165,7]
[372296032,1752576665597,-158.1622815,0.00022165,7]
[372296033,1752576665607,-500.0,0.00022165,7]
[372296034,1752576665617,-151.0,0.00022165,7]
[372296035,1752576665626,-151.0,0.00022165,2]
[372296036,1752576665636,-151.0,0.00022165,7]
[372296037,1752576665646,-810.0,0.00022165,7]
[372296038,1752576665656,-151.0,0.00022165,7]
[372296039,1752576665666,-500.0,0.00022165,7]
[372296040,1752576665675,-198.0,0.00022165,7]
[372296041,1752576665685,-274.08742551,0.00022165,7]
[372296042,1752576665694,-500.0,0.00022165,7]
[372296043,1752576665709,-500.0,0.00022165,7]
[372296044,1752576665718,-151.0,0.00022165,7]
[372296045,1752576665727,-500.0,0.00022165,7]
[372296046,1752576665737,-151.0,0.00022165,7]
[372296047,1752576665747,-280.91465027,0.00022165,7]
[372296048,1752576665755,-151.0,0.00022165,7]
[372296049,1752576665765,-9101.34560448,0.00022176,6]
[372296050,1752576665776,-153.059181,0.00022191,7]
[372296051,1752576665788,-153.059181,0.00022191,7]
[372296052,1752576665797,-151.0,0.00022191,7]
[372296053,1752576665807,-151.0,0.00022191,7]
[372296054,1752576665816,-151.0,0.00022191,7]
[372296055,1752576665827,-151.0,0.00022191,7]
[372296056,1752576665837,-151.0,0.00022191,7]
[372296057,1752576665847,-151.0,0.00022191,7]
[372296058,1752576665857,-151.0,0.00022191,7]
[372296059,1752576665867,-151.0,0.00022191,7]
[372296060,1752576665877,-460.0,0.00022191,2]
[372296061,1752576665886,-151.0,0.00022191,7]
[372296062,1752576665895,-211.207258,0.00022191,7]
[372296063,1752576665904,-151.0,0.00022191,7]
[372296064,1752576665914,-460.0,0.00022191,2]
[372296065,1752576665924,-460.0,0.00022191,2]
[372296066,1752576665933,-460.0,0.00022191,2]
[372296067,1752576665943,-460.0,0.00022191,2]
[372296068,1752576665955,-532.14,0.00022191,2]
[372296069,1752576665965,-615.03,0.00022191,2]
[372296070,1752576665975,-621.3,0.00022191,2]
[372296071,1752576665985,-460.0,0.00022191,2]
[372296072,1752576665996,-887.33,0.00022191,2]
[372296073,1752576666006,-460.0,0.00022191,2]
[372296074,1752576666015,-460.0,0.00022191,2]
[372296075,1752576666025,-911.96,0.00022191,2]
[372296076,1752576666034,-332.14142316,0.00022191,2]
[372296077,1752576666044,-728.39,0.00022191,2]
[372296078,1752576666054,-876.22,0.00022191,2]
[372296079,1752576666063,-460.0,0.00022191,2]
[372296080,1752576666073,-525.07,0.00022191,2]
[372296081,1752576666082,-460.0,0.00022191,2]
[372296082,1752576666091,-1929.04,0.00022191,2]
[372296083,1752576666101,-898.74,0.00022191,2]
[372296084,1752576666110,-2277.18,0.00022191,2]
[372296085,1752576666120,-460.0,0.00022191,2]
[372296086,1752576666130,-2409.93,0.00022191,2]
[372296087,1752576666140,-767.49,0.00022191,2]
[372296088,1752576666150,-3874.16,0.00022191,2]
[372296089,1752576666160,-1024.73,0.00022191,2]
[372296090,1752576666170,-460.0,0.00022191,2]
[372296091,1752576666180,-460.0,0.00022191,2]
[372296092,1752576666191,-2456.27,0.00022191,2]
[372296093,1752576666202,-5607.35,0.00022191,2]
[372296094,1752576666212,-965.9,0.00022191,2]
[372296095,1752576666222,-700.71,0.00022191,2]
[372296096,1752576666232,-567.75,0.00022191,2]
[372296097,1752576666241,-613.96,0.00022191,2]
[372296098,1752576666252,-462.38,0.00022191,2]
[372296099,1752576666263,-910.8,0.00022191,2]
[372296100,1752576666273,-3524.09,0.00022191,2]
[372296101,1752576666283,-5580.35,0.00022191,2]
[372296102,1752576666294,-2725.35,0.00022191,2]
[372296103,1752576666304,-793.39,0.00022191,2]
[372296104,1752576666314,-518.31,0.00022191,2]
[372296105,1752576666331,-989.14,0.00022191,2]
[372296106,1752576666341,-460.0,0.00022191,2]
[372296107,1752576666351,-1154.57,0.00022191,2]
[372296108,1752576666361,-460.0,0.00022191,2]
[372296109,1752576666371,-460.0,0.00022191,2]
[372296110,1752576666381,-460.0,0.00022191,2]
[372296111,1752576666392,-460.0,0.00022191,2]
[372296112,1752576666402,-460.0,0.00022191,2]
[372296113,1752576666411,-6943.82,0.00022191,2]
[372296114,1752576666421,-1423.61,0.00022191,2]
[372296115,1752576666431,-476.29,0.00022191,2]
[372296116,1752576666441,-460.0,0.00022191,2]
[372296117,1752576666451,-790.9,0.00022191,2]
[372296118,1752576666461,-1209.86,0.00022191,2]
[372296119,1752576666471,-688.25,0.00022191,2]
[372296120,1752576666481,-2697.52,0.00022191,2]
[372296121,1752576666490,-460.0,0.00022191,2]
[372296122,1752576666500,-918.36,0.00022191,2]
[372296123,1752576666510,-2341.14,0.00022191,2]
[372296124,1752576666519,-460.0,0.00022191,2]
[372296125,1752576666529,-551.94,0.00022191,2]
[372296126,1752576666539,-563.91,0.00022191,2]
[372296127,1752576666549,-1174.35,0.00022191,2]
[372296128,1752576666559,-8228.16,0.00022191,2]
[372296129,1752576666568,-287.0,0.00022192,7]
[372296130,1752576666578,-502.22467294,0.00022192,7]
[372296131,1752576666588,-247.62234683,0.00022192,7]
[372296132,1752576666598,-209.78734587,0.00022192,7]
[372296133,1752576666608,-500.0,0.00022192,7]
[372296134,1752576666627,-151.0,0.00022192,7]
[372296135,1752576666637,-810.0,0.00022192,7]
[372296136,1752576666647,-500.0,0.00022192,7]
[372296137,1752576666658,-500.0,0.00022192,7]
[372296138,1752576666667,-500.0,0.00022192,7]
[372296139,1752576666678,-500.0,0.00022192,7]
[372296140,1752576666688,-151.0,0.00022192,7]
[372296141,1752576666699,-151.0,0.00022192,7]
[372296142,1752576666708,-151.0,0.000222,7]
[372296143,1752576666718,-500.0,0.0002222,7]
[372296144,1752576666728,-199.56185223,0.0002222,7]
[372296145,1752576666738,-810.0,0.0002222,7]
[372296146,1752576666751,-500.0,0.0002222,7]
[372296147,1752576666762,-500.0,0.0002222,7]
[372296148,1752576666773,-500.0,0.0002222,7]
[372296149,1752576666786,-516.43685009,0.0002222,7]
[372296150,1752576666798,-198.0,0.0002222,7]
[372296151,1752576666808,-560.0,0.00022223,2]
[372296152,1752576666818,-500.0,0.00022247,7]
[372296153,1752576666828,-810.0,0.00022247,7]
[372296154,1752576666839,-500.0,0.00022247,7]
[372296155,1752576666849,-500.0,0.00022247,7]
[372296156,1752576666859,-500.0,0.00022247,7]
[372296157,1752576666874,-500.0,0.00022275,7]
[372296158,1752576666885,-810.0,0.00022275,7]
[372296159,1752576666896,-629.62734468,0.00022275,7]
[372296160,1752576666906,-500.0,0.00022275,7]
[372296161,1752576666916,-500.0,0.00022275,7]
[372296162,1752576666926,-500.0,0.00022302,7]
[372296163,1752576666935,-810.0,0.00022302,7]
[372296164,1752576666946,-261.26192034,0.00022302,7]
[372296165,1752576666959,-500.0,0.00022302,7]
[372296166,1752576666969,-647.0,0.00022315,2]
[372296167,1752576666979,-2155.0,0.00022315,2]
[372296168,1752576666989,-321.679,0.00022315,2]
[372296169,1752576666999,-412.514,0.00022315,2]